bitfinex-derivatives/quotes_BTCF0:USTF0_20240814
["timestamp","ask_amount","ask_price","bid_price","bid_amount"]
[1723673040889,0.3608,58497.0,58492.0,0.085468]
[1723673041093,0.7216,58497.0,58489.0,0.0002566]
[1723673041295,0.7216,58497.0,58484.0,0.4382]
[1723673041296,0.085478,58485.0,58484.0,0.0774]
[1723673041490,0.085478,58485.0,58474.0,0.3608]
[1723673041491,0.446278,58485.0,58474.0,0.3608]
[1723673041692,0.3608,58485.0,58469.0,0.3608]
[1723673041886,0.3608,58478.0,58472.0,0.085497]
[1723673042082,0.3608,58478.0,58476.0,0.085491]
[1723673042294,0.00146286,58477.0,58461.0,0.3608]
[1723673042489,0.3608,58472.0,58463.0,0.08551]
[1723673042688,0.3608,58472.0,58461.0,0.3608]
[1723673042689,0.00016527,58471.0,58464.0,0.085509]
[1723673042993,0.01113375,58471.0,58461.0,0.3608]
[1723673043298,0.3608,58462.0,58450.0,0.441]
[1723673043485,0.085515,58460.0,58450.0,0.441]
[1723673043689,0.01845194,58461.0,58450.0,0.441]
[1723673043885,0.00146325,58459.0,58451.0,0.085528]
[1723673044102,0.00146325,58459.0,58457.0,0.085519]
[1723673044292,0.00016527,58461.0,58460.0,0.085515]
[1723673044800,0.00820994,58461.0,58460.0,0.959475]
[1723673045096,0.00846654,58461.0,58460.0,1.359475]
[1723673045291,0.3608,58478.0,58460.0,0.87396]
[1723673045497,0.01462646,58461.0,58460.0,0.446315]
[1723673045896,0.01462646,58461.0,58460.0,1.359475]
[1723673046796,0.01462646,58461.0,58460.0,0.959475]
[1723673046991,0.46094046,58461.0,58455.0,0.0002566]
[1723673047187,0.08552,58457.0,58455.0,0.0002566]
[1723673047387,0.3608,58461.0,58455.0,0.0002566]
[1723673047588,0.0002566,58466.0,58464.0,0.085509]
[1723673047993,0.0002566,58466.0,58465.0,0.51312]
[1723673048194,0.0002566,58466.0,58465.0,0.66312]
[1723673048503,0.085476,58487.0,58466.0,0.51312]
[1723673048800,0.185476,58487.0,58482.0,0.3608]
[1723673049205,0.3608,58492.0,58482.0,0.3608]
[1723673049505,0.085453,58503.0,58487.0,0.3608]
[1723673049693,0.12,58503.0,58493.0,0.3608]
[1723673049892,0.3608,58504.0,58502.0,0.085454]
[1723673050089,0.0485,58538.0,58493.0,0.5208]
[1723673050090,0.085433,58517.0,58499.0,0.7216]
[1723673050288,0.3608,58512.0,58510.0,0.085441]
[1723673050802,0.3608,58521.0,58506.0,0.3608]
[1723673051098,0.4808,58521.0,58506.0,0.3608]
[1723673051294,0.00244001,58527.0,58517.0,0.3608]
[1723673051495,0.3608,58531.0,58522.0,0.3608]
[1723673051801,1.05717001,58532.0,58522.0,0.3608]
[1723673051802,1.05717001,58532.0,58531.0,0.085411]
[1723673052102,1.05477,58532.0,58531.0,0.597971]
[1723673052305,1.05477,58532.0,58527.0,0.3608]
[1723673053011,1.05502636,58532.0,58531.0,0.446211]
[1723673053500,0.65362636,58532.0,58531.0,1.358771]
[1723673053702,0.26502636,58532.0,58531.0,1.358771]
[1723673053893,0.26502636,58532.0,58531.0,0.958771]
[1723673054094,0.26502636,58532.0,58531.0,1.358771]
[1723673054306,0.03756336,58532.0,58531.0,1.508771]
[1723673054501,0.03756336,58532.0,58531.0,1.518771]
[1723673054891,3.6e-07,58532.0,58531.0,1.358771]
[1723673055091,3.6e-07,58532.0,58531.0,0.997971]
[1723673055298,3.6e-07,58532.0,58531.0,0.446211]
[1723673055606,3.6e-07,58532.0,58531.0,0.3608]
[1723673056193,3.6e-07,58532.0,58531.0,0.51256]
[1723673056506,0.51256,58531.0,58511.0,0.08544]
[1723673056695,0.085434,58516.0,58508.0,0.3608]
[1723673057101,0.170868,58516.0,58508.0,0.3608]
[1723673057307,0.085443,58509.0,58508.0,0.3608]
[1723673057600,0.301,58512.0,58502.0,0.3608]
[1723673057797,0.085446,58508.0,58506.0,0.00025636]
[1723673057998,0.301,58512.0,58506.0,0.00025636]
[1723673058197,0.085442,58510.0,58506.0,0.00025636]
[1723673058604,0.301,58512.0,58506.0,0.00025636]
[1723673058803,0.085445,58508.0,58506.0,0.00025636]
[1723673059001,0.301,58512.0,58506.0,0.00025636]
[1723673059202,0.08544,58511.0,58506.0,0.00025636]
[1723673059507,0.301,58512.0,58506.0,0.00025636]
[1723673060407,0.3608,58513.0,58511.0,0.08544]
[1723673060610,0.00025636,58514.0,58513.0,0.085437]
[1723673061311,0.00025636,58514.0,58513.0,0.998157]
[1723673061600,0.00025636,58514.0,58513.0,1.148157]
[1723673061802,0.3608,58519.0,58518.0,0.08543]
[1723673062207,0.3608,58531.0,58518.0,1.27344]
[1723673062508,0.3608,58531.0,58518.0,0.5108]
[1723673062705,0.3608,58531.0,58530.0,0.085412]
[1723673063605,0.088,58532.0,58531.0,0.085411]
[1723673063800,0.00025636,58536.0,58531.0,0.14]
[1723673064311,0.00025636,58536.0,58535.0,0.085405]
[1723673064500,0.00025636,58536.0,58535.0,0.747925]
[1723673064700,0.00025636,58536.0,58535.0,1.147925]
[1723673064900,0.0813,58549.0,58546.0,0.085389]
[1723673065501,0.0813,58549.0,58546.0,0.597789]
[1723673066305,0.0813,58549.0,58546.0,0.958589]
[1723673066807,0.00025636,58552.0,58550.0,0.085383]
[1723673066808,4.4e-07,58551.0,58550.0,0.085383]
[1723673067109,0.00025636,58552.0,58551.0,0.085382]
[1723673067308,0.0824593,58557.0,58551.0,0.085382]
[1723673067309,3e-07,58557.0,58556.0,0.17075]
[1723673067510,0.3608,58574.0,58556.0,0.9208]
[1723673067708,0.3608,58574.0,58572.0,0.085351]
[1723673068097,0.3608,58574.0,58572.0,0.997551]
[1723673068304,0.16663,58587.0,58572.0,1.167551]
[1723673068305,0.085331,58586.0,58572.0,1.167551]
[1723673068502,0.4421,58587.0,58572.0,0.997551]
[1723673068810,0.00025612,58578.0,58572.0,0.597551]
[1723673070312,0.00025612,58578.0,58569.0,0.3608]
[1723673070313,0.085354,58570.0,58569.0,0.3608]
[1723673070613,0.3608,58570.0,58555.0,0.60004]
[1723673070810,0.3608,58563.0,58555.0,0.3608]
[1723673071013,0.3608,58556.0,58541.0,0.3608]
[1723673071203,0.3608,58563.0,58547.0,0.3608]
[1723673071204,0.085382,58551.0,58547.0,0.3608]
[1723673071405,0.446173,58557.0,58547.0,0.446188]
[1723673071705,0.08538,58553.0,58549.0,0.085384]
[1723673071913,0.3608,58557.0,58549.0,0.085384]
[1723673072106,0.3608,58557.0,58547.0,0.3608]
[1723673072311,0.085386,58548.0,58547.0,0.3608]
[1723673072499,0.085388,58547.0,58546.0,0.00025612]
[1723673072702,0.085401,58538.0,58534.0,0.3608]
[1723673072898,0.3608,58543.0,58542.0,0.085395]
[1723673073207,0.3608,58555.0,58534.0,0.3608]
[1723673073404,0.3608,58548.0,58534.0,0.5208]
[1723673073711,0.085388,58547.0,58534.0,0.5208]
[1723673074025,0.085391,58545.0,58540.0,0.085398]
[1723673074404,0.3608,58543.0,58540.0,0.085398]
[1723673074912,0.3608,58543.0,58541.0,0.085396]
[1723673075113,0.3608,58543.0,58535.0,0.08566012]
[1723673075313,0.3608,58543.0,58538.0,0.0854]
[1723673075514,0.00025612,58547.0,58535.0,0.00025612]
[1723673075818,0.00025612,58547.0,58546.0,0.085389]
[1723673076003,0.00025612,58547.0,58546.0,0.255389]
[1723673076203,0.3608,58554.0,58546.0,0.255389]
[1723673076204,0.3608,58554.0,58553.0,0.085379]
[1723673076410,0.3608,58562.0,58561.0,0.085367]
[1723673076610,0.3608,58572.0,58556.0,0.085374]
[1723673076817,0.08538,58553.0,58550.0,0.3608]
[1723673077040,0.085373,58557.0,58550.0,0.446182]
[1723673077208,0.3608,58558.0,58550.0,0.3608]
[1723673077517,0.00025612,58559.0,58558.0,0.085372]
[1723673077820,0.08536,58566.0,58562.0,0.085365]
[1723673078010,0.00025612,58564.0,58562.0,0.085365]
[1723673078207,0.00025612,58564.0,58550.0,0.3608]
[1723673078408,0.00025612,58564.0,58550.0,0.5008]
[1723673078715,0.085369,58561.0,58556.0,0.085374]
[1723673078912,0.085373,58557.0,58556.0,0.15]
[1723673079105,0.085382,58551.0,58550.0,0.3608]
[1723673079302,0.085385,58549.0,58548.0,0.00025612]
[1723673079503,0.3608,58551.0,58548.0,0.00025612]
[1723673079712,0.3608,58557.0,58548.0,0.00025612]
[1723673079713,0.3608,58557.0,58554.0,0.085376]
[1723673080014,0.085379,58553.0,58549.0,0.085385]
[1723673080414,0.085379,58553.0,58550.0,0.085383]
[1723673080614,0.3608,58557.0,58550.0,0.15]
[1723673080804,0.36105612,58564.0,58553.0,0.3608]
[1723673081119,0.36105612,58564.0,58563.0,0.085364]
[1723673081309,0.00025612,58564.0,58563.0,0.235364]
[1723673081506,1e-08,58564.0,58563.0,1.147644]
[1723673081706,1e-08,58564.0,58563.0,1.233008]
[1723673083006,1e-08,58564.0,58563.0,1.318372]
[1723673083622,1e-08,58564.0,58563.0,1.50280979]
[1723673083821,0.3608,58596.0,58572.0,0.085351]
[1723673084022,0.3608,58596.0,58592.0,0.085322]
[1723673084511,0.3608,58596.0,58584.0,0.3608]
[1723673084713,0.3608,58585.0,58577.0,0.3608]
[1723673084917,0.3608,58585.0,58584.0,0.00025612]
[1723673085311,0.446132,58585.0,58584.0,0.00025612]
[1723673086422,0.3608,58585.0,58584.0,0.00025612]
[1723673086821,0.3608,58590.0,58584.0,0.67233612]
[1723673087124,0.3608,58590.0,58584.0,0.08558812]
[1723673087125,0.446126,58590.0,58584.0,0.08558812]
[1723673087323,0.446126,58590.0,58585.0,0.085332]
[1723673087515,0.3608,58590.0,58585.0,0.085332]
[1723673087715,0.3608,58590.0,58584.0,0.00025612]
[1723673088014,0.3608,58590.0,58588.0,0.085328]
[1723673088430,0.3608,58590.0,58589.0,0.085326]
[1723673089723,0.3608,58590.0,58589.0,1.167366]
[1723673089918,0.00025612,58596.0,58589.0,1.167366]
[1723673090125,0.00025612,58596.0,58589.0,0.17]
[1723673090729,0.00025612,58596.0,58594.0,0.085318]
[1723673090929,0.00025612,58596.0,58595.0,0.085318]
[1723673091136,0.00025612,58596.0,58595.0,0.235318]
[1723673091729,0.00025612,58596.0,58595.0,0.747318]
[1723673092236,0.00025612,58596.0,58595.0,1.147318]
[1723673093233,0.00025612,58596.0,58595.0,1.232636]
[1723673095237,0.3608,58621.0,58595.0,1.60633686]
[1723673095440,0.3608,58624.0,58620.0,0.085281]
[1723673095939,0.3608,58624.0,58621.0,0.08528]
[1723673095940,0.085279,58622.0,58621.0,0.08528]
[1723673096127,0.085279,58622.0,58621.0,0.25528]
[1723673096635,0.3608,58624.0,58623.0,0.085277]
[1723673096836,0.3608,58624.0,58623.0,0.225277]
[1723673097038,0.00016149,58627.0,58626.0,0.085273]
[1723673097237,0.00016149,58627.0,58626.0,0.225273]
[1723673097439,0.00016149,58627.0,58626.0,1.222266]
[1723673098429,4.9e-07,58627.0,58626.0,1.307539]
[1723673098635,4.9e-07,58627.0,58626.0,1.222266]
[1723673098927,4.9e-07,58627.0,58626.0,1.136993]
[1723673100129,4.9e-07,58627.0,58626.0,1.222266]
[1723673100634,4.9e-07,58627.0,58626.0,1.337539]
[1723673100939,4.9e-07,58627.0,58626.0,1.252266]
[1723673101141,4.9e-07,58627.0,58626.0,0.766993]
[1723673101342,4.9e-07,58627.0,58626.0,0.255273]
[1723673101634,4.9e-07,58627.0,58518.0,3.8]
[1723673101635,4.9e-07,58627.0,58613.0,0.085291]
[1723673101829,0.3608,58622.0,58612.0,0.59976]
[1723673102030,4.9e-07,58627.0,58612.0,0.59976]
[1723673102232,4.9e-07,58627.0,58626.0,0.085273]
[1723673102431,4.9e-07,58627.0,58626.0,0.245273]
[1723673102639,0.08527149,58627.0,58621.0,0.3608]
[1723673102838,4.9e-07,58627.0,58626.0,0.085273]
[1723673103139,0.085273,58626.0,58622.0,0.085278]
[1723673103342,0.085273,58626.0,58623.0,0.085276]
[1723673103535,0.085273,58626.0,58624.0,0.085275]
[1723673104146,0.085273,58626.0,58625.0,0.085274]
[1723673104326,0.085273,58626.0,58616.0,0.36105586]
[1723673104533,0.3608,58625.0,58618.0,0.085284]
[1723673104741,0.085282,58620.0,58619.0,0.085283]
[1723673105137,0.0975,58624.0,58620.0,0.085281]
[1723673105641,0.0975,58624.0,58616.0,0.36105586]
[1723673105941,0.182776,58624.0,58620.0,0.085281]
[1723673106331,0.0975,58624.0,58620.0,0.15]
[1723673106529,0.0975,58624.0,58623.0,0.085277]
[1723673106845,4.9e-07,58627.0,58626.0,0.1639483]
[1723673107057,4.9e-07,58627.0,58626.0,0.2486753]
[1723673107537,4.9e-07,58627.0,58626.0,1.1603953]
[1723673107926,4.9e-07,58627.0,58626.0,0.7603953]
[1723673108539,4.9e-07,58627.0,58626.0,1.1603953]
[1723673110339,4.9e-07,58627.0,58626.0,1.58568652]
[1723673110746,4.9e-07,58627.0,58626.0,1.69442155]
[1723673110936,4.9e-07,58627.0,58626.0,0.17]
[1723673111133,4.9e-07,58627.0,58624.0,0.3608]
[1723673111335,4.9e-07,58627.0,58626.0,0.085273]
[1723673111535,4.9e-07,58627.0,58624.0,0.3608]
[1723673111736,4.9e-07,58627.0,58624.0,0.5008]
[1723673111936,4.9e-07,58627.0,58626.0,0.085273]
[1723673112145,4.9e-07,58627.0,58626.0,0.225273]
[1723673113447,4.9e-07,58627.0,58618.0,0.085284]
[1723673113746,0.09600049,58627.0,58618.0,0.15]
[1723673114044,0.09600049,58627.0,58623.0,0.3608]
[1723673114247,0.09600049,58627.0,58626.0,0.085273]
[1723673114438,0.09600049,58627.0,58626.0,0.235273]
[1723673115344,4.9e-07,58627.0,58626.0,0.235273]
[1723673116438,4.9e-07,58627.0,58626.0,0.746993]
[1723673116643,4.9e-07,58627.0,58626.0,1.146993]
[1723673116947,4.9e-07,58627.0,58626.0,0.746993]
[1723673117138,4.9e-07,58627.0,58626.0,1.146993]
[1723673117451,4.9e-07,58627.0,58626.0,0.746993]
[1723673117945,4.9e-07,58627.0,58626.0,1.146993]
[1723673120456,4.9e-07,58627.0,58626.0,1.507793]
[1723673120753,4.9e-07,58627.0,58626.0,2.21479914]
[1723673120947,0.3608,58667.0,58647.0,0.085242]
[1723673121247,0.085206,58672.0,58657.0,0.3608]
[1723673121248,0.085207,58671.0,58657.0,0.3608]
[1723673121452,0.11,58671.0,58657.0,0.5108]
[1723673121647,0.11,58671.0,58670.0,0.085209]
[1723673121849,0.0959,58672.0,58671.0,0.085207]
[1723673122252,0.0959,58672.0,58671.0,0.255207]
[1723673122554,0.08292696,58678.0,58677.0,0.085198]
[1723673122743,0.08292696,58678.0,58677.0,0.255198]
[1723673122946,0.08292696,58678.0,58669.0,0.3608]
[1723673122947,0.085199,58677.0,58669.0,0.3608]
[1723673123151,0.085205,58673.0,58669.0,0.3608]
[1723673123947,0.085192,58682.0,58669.0,0.3608]
[1723673124147,0.085208,58671.0,58669.0,0.3608]
[1723673124349,0.0852,58677.0,58669.0,0.3608]
[1723673124653,0.3608,58683.0,58669.0,0.5108]
[1723673124842,0.3608,58683.0,58682.0,0.085191]
[1723673125048,0.1018,58687.0,58686.0,0.085185]
[1723673125243,0.08292696,58693.0,58692.0,0.085177]
[1723673125661,0.08292696,58693.0,58681.0,0.3608]
[1723673125662,0.08292696,58693.0,58682.0,0.08519]
[1723673125955,0.08292696,58693.0,58681.0,0.3608]
[1723673125956,0.085182,58689.0,58683.0,0.085189]
[1723673126146,0.085182,58689.0,58687.0,0.00025563]
[1723673126348,0.3608,58690.0,58687.0,0.00025563]
[1723673126553,0.3608,58690.0,58688.0,0.085182]
[1723673126755,0.3608,58690.0,58687.0,0.00025563]
[1723673126756,0.3608,58690.0,58689.0,0.085181]
[1723673127150,0.4623,58695.0,58694.0,0.085174]
[1723673127350,0.3608,58695.0,58687.0,0.36105563]
[1723673127550,0.3608,58690.0,58687.0,0.00025563]
[1723673127754,0.085182,58689.0,58687.0,0.00025563]
[1723673127956,0.085182,58688.0,58687.0,0.00025563]
[1723673128358,0.3608,58690.0,58687.0,0.08543863]
[1723673128552,0.3608,58690.0,58687.0,0.00025563]
[1723673128959,0.3608,58690.0,58689.0,0.085181]
[1723673129159,0.3608,58695.0,58694.0,0.085174]
[1723673129960,0.3608,58695.0,58694.0,0.255174]
[1723673130159,0.3608,58704.0,58694.0,0.17]
[1723673130354,0.3608,58713.0,58712.0,0.085148]
[1723673130757,0.06681451,58725.0,58712.0,0.085148]
[1723673130758,0.06681451,58725.0,58717.0,0.08514]
[1723673130956,0.16585393,58718.0,58717.0,0.61594]
[1723673131257,0.06681451,58725.0,58724.0,0.08513]
[1723673131862,0.06681451,58725.0,58722.0,0.3608]
[1723673132063,0.085132,58723.0,58722.0,0.3608]
[1723673132280,0.3608,58723.0,58717.0,0.3608]
[1723673132457,0.085136,58720.0,58717.0,0.5308]
[1723673132654,0.42761451,58725.0,58717.0,0.5308]
[1723673133170,0.085133,58723.0,58717.0,0.61594]
[1723673133474,0.42761451,58725.0,58717.0,0.61594]
[1723673133762,0.3608,58718.0,58707.0,0.36105563]
[1723673133958,0.085151,58710.0,58707.0,0.00025563]
[1723673134159,0.3608,58708.0,58693.0,0.36092577]
[1723673134357,0.3608,58699.0,58693.0,0.36092577]
[1723673134559,0.085174,58694.0,58693.0,0.36092577]
[1723673135559,1.35192,58694.0,58688.0,0.00025563]
[1723673135762,0.3608,58689.0,58652.0,0.3608]
[1723673135962,0.3608,58668.0,58657.0,0.3608]
[1723673136156,0.3608,58668.0,58667.0,0.085213]
[1723673136370,0.3608,58668.0,58653.0,0.085233]
[1723673136371,0.3608,58668.0,58656.0,0.085229]
[1723673136569,0.3608,58663.0,58652.0,0.3608]
[1723673136865,0.3608,58663.0,58658.0,0.085226]
[1723673137462,0.3608,58663.0,58660.0,0.085223]
[1723673138269,0.3608,58663.0,58662.0,0.08522]
[1723673139363,0.085223,58660.0,58655.0,0.0671934]
[1723673139565,0.446023,58660.0,58655.0,0.0671934]
[1723673139761,0.085229,58656.0,58655.0,0.0671934]
[1723673139966,0.085236,58651.0,58650.0,0.08367222]
[1723673140258,0.44616234,58651.0,58650.0,0.08367222]
[1723673140464,0.36092634,58651.0,58650.0,0.16891022]
[1723673140667,0.00012634,58651.0,58650.0,0.16891022]
[1723673142173,0.00012634,58651.0,58650.0,0.085238]
[1723673142871,0.00012634,58651.0,58650.0,0.996758]
[1723673143074,0.00012634,58651.0,58650.0,1.146758]
[1723673143270,0.00012634,58651.0,58650.0,0.085238]
[1723673143570,0.36092634,58651.0,58645.0,0.00025563]
[1723673143868,0.36092634,58651.0,58638.0,0.00018616]
[1723673143869,0.3608,58646.0,58638.0,0.00018616]
[1723673144075,0.3608,58639.0,58638.0,0.08544116]
[1723673144276,0.446054,58639.0,58638.0,0.00018616]
[1723673144465,0.3608,58639.0,58638.0,0.00018616]
[1723673144666,0.3608,58639.0,58638.0,0.08544116]
[1723673145979,0.3608,58639.0,58638.0,0.25544116]
[1723673147173,0.255783,58634.0,58603.0,0.3608]
[1723673147372,0.531366,58619.0,58603.0,0.3608]
[1723673147678,0.446083,58619.0,58618.0,0.04181384]
[1723673147878,0.085292,58613.0,58606.0,0.085302]
[1723673148078,0.44625274,58613.0,58606.0,0.085302]
[1723673148577,0.44625274,58613.0,58607.0,0.08555586]
[1723673148766,0.44625274,58613.0,58607.0,0.00025586]
[1723673148962,0.36096074,58613.0,58607.0,0.00025586]
[1723673149174,0.36096074,58613.0,58611.0,0.085294]
[1723673149371,0.36096074,58613.0,58612.0,0.18569966]
[1723673150075,0.00016074,58613.0,58612.0,0.18569966]
[1723673150571,0.00016074,58613.0,58612.0,0.33569966]
[1723673152581,0.00016074,58613.0,58612.0,0.18569966]
[1723673153677,0.3608,58614.0,58613.0,0.085292]
[1723673153879,0.3608,58614.0,58613.0,0.245292]
[1723673154179,0.00025586,58618.0,58617.0,0.085286]
[1723673154377,0.00025586,58618.0,58617.0,0.720572]
[1723673154586,0.085246,58645.0,58627.0,0.085271]
[1723673154587,0.00018026,58628.0,58627.0,0.085271]
[1723673154772,0.00018026,58628.0,58627.0,0.606071]
[1723673154972,0.00018026,58628.0,58627.0,1.117791]
[1723673155166,0.3608,58643.0,58628.0,0.085269]
[1723673155374,0.3608,58643.0,58632.0,0.3608]
[1723673155576,0.36105586,58643.0,58632.0,0.52105586]
[1723673155777,0.36105586,58643.0,58639.0,0.085253]
[1723673156073,0.00025586,58643.0,58632.0,0.36105586]
[1723673156273,0.00025586,58643.0,58632.0,0.51105586]
[1723673157079,0.00025586,58643.0,58642.0,0.08525]
[1723673157683,0.3608,58655.0,58642.0,0.08525]
[1723673157684,0.3608,58655.0,58642.0,0.5208]
[1723673158381,0.3608,58655.0,58647.0,0.3608]
[1723673158573,0.3608,58655.0,58654.0,0.085232]
[1723673159177,0.36105586,58660.0,58659.0,0.085225]
[1723673159980,0.36105586,58660.0,58659.0,0.235225]
[1723673160286,0.00025586,58660.0,58659.0,0.596025]
[1723673160684,0.00025586,58660.0,58659.0,0.235225]
[1723673162383,0.3608,58671.0,58659.0,0.5108]
[1723673162587,0.3608,58679.0,58678.0,0.085197]
[1723673162885,0.3608,58683.0,58682.0,0.085191]
[1723673163285,0.3608,58692.0,58691.0,0.085178]
[1723673163584,0.3608,58692.0,58686.0,0.00025563]
[1723673163887,0.3608,58692.0,58691.0,0.085178]
[1723673164481,0.00025563,58697.0,58696.0,0.170342]
[1723673164676,0.00025563,58697.0,58691.0,1.136338]
[1723673164677,0.3608,58711.0,58706.0,0.085157]
[1723673164880,0.3608,58718.0,58706.0,0.085157]
[1723673165180,0.4749,58721.0,58706.0,0.085157]
[1723673165681,0.4749,58721.0,58706.0,0.596157]
[1723673165683,0.3608,58721.0,58706.0,0.596157]
[1723673165984,0.3608,58721.0,58711.0,0.085149]
[1723673165985,0.00025416,58712.0,58711.0,0.085149]
[1723673166195,0.00025416,58712.0,58711.0,0.445949]
[1723673167182,0.00025416,58712.0,58711.0,1.506909]
[1723673167380,0.00025416,58712.0,58711.0,1.106909]
[1723673167575,0.00025416,58712.0,58711.0,0.595949]
[1723673168587,0.00025416,58712.0,58711.0,0.445949]
[1723673168890,0.00025416,58712.0,58711.0,0.085149]
[1723673170992,0.00025416,58712.0,58711.0,0.245149]
[1723673171491,1.6e-07,58712.0,58711.0,1.602059]
[1723673172094,1.6e-07,58712.0,58711.0,1.116909]
[1723673173293,1.6e-07,58712.0,58711.0,0.445949]
[1723673174085,0.99610816,58712.0,58711.0,0.3608]
[1723673174391,0.91096016,58712.0,58702.0,0.3608]
[1723673174587,1.6e-07,58712.0,58707.0,0.085155]
[1723673174985,1.6e-07,58712.0,58702.0,0.3608]
[1723673175496,1.6e-07,58712.0,58711.0,0.08515]
[1723673176398,0.51096016,58712.0,58711.0,0.08515]
[1723673176694,1.6e-07,58712.0,58711.0,0.08515]
[1723673178483,0.085157,58706.0,58705.0,0.3608]
[1723673178887,0.596197,58706.0,58705.0,0.3608]
[1723673179698,0.596197,58706.0,58693.0,0.085175]
[1723673179699,0.596199,58705.0,58693.0,0.085175]
[1723673179894,0.3608,58694.0,58693.0,0.085175]
[1723673181492,0.3608,58694.0,58693.0,0.225176]
[1723673181693,0.36105563,58699.0,58698.0,0.085168]
[1723673181996,0.47105563,58699.0,58688.0,0.00025563]
[1723673182199,0.47105563,58699.0,58688.0,0.16025563]
[1723673182391,0.47105563,58699.0,58698.0,0.085168]
[1723673182588,0.36105563,58699.0,58698.0,0.085168]
[1723673183496,0.36105563,58699.0,58688.0,0.00025563]
[1723673183497,1.23293563,58699.0,58688.0,0.00025563]
[1723673183804,0.3608,58690.0,58689.0,0.085182]
[1723673184303,0.3608,58698.0,58689.0,0.085182]
[1723673184597,0.12,58698.0,58697.0,0.08517]
[1723673184800,0.3608,58711.0,58697.0,0.16]
[1723673184993,0.085155,58708.0,58694.0,0.3608]
[1723673185192,0.205155,58708.0,58694.0,0.5208]
[1723673185395,0.205155,58708.0,58705.0,0.085158]
[1723673185593,0.3608,58714.0,58707.0,0.445955]
[1723673185797,0.3608,58714.0,58713.0,0.085147]
[1723673186094,0.085139,58719.0,58713.0,0.3608]
[1723673186299,0.205139,58719.0,58713.0,0.3608]
[1723673186494,0.205139,58719.0,58717.0,0.085141]
[1723673186896,0.51092,58718.0,58713.0,0.3608]
[1723673187186,0.085142,58717.0,58713.0,0.3608]
[1723673187798,0.085143,58716.0,58713.0,0.3608]
[1723673188190,0.085145,58714.0,58713.0,0.3608]
[1723673188592,0.085138,58719.0,58713.0,0.3608]
[1723673188801,0.205138,58719.0,58713.0,0.3608]
[1723673189611,0.12,58719.0,58713.0,0.3608]
[1723673189799,0.085145,58714.0,58713.0,0.3608]
[1723673189995,0.085145,58714.0,58705.0,0.00025563]
[1723673189996,0.085157,58706.0,58705.0,0.00025563]
[1723673190199,0.205157,58706.0,58705.0,0.00025563]
[1723673190407,0.205157,58706.0,58688.0,0.3608]
[1723673190408,0.085182,58689.0,58688.0,0.3608]
[1723673190695,0.3608,58697.0,58688.0,0.3608]
[1723673190902,0.085186,58686.0,58685.0,0.3608]
[1723673191396,1.116386,58686.0,58685.0,0.3608]
[1723673191601,0.12,58686.0,58685.0,0.3608]
[1723673191901,0.205186,58686.0,58685.0,0.3608]
[1723673192096,0.205186,58686.0,58685.0,0.445987]
[1723673192097,0.12,58686.0,58685.0,0.445987]
[1723673192802,0.12,58686.0,58685.0,0.3608]
[1723673192803,0.205186,58686.0,58685.0,0.3608]
[1723673193203,0.12,58686.0,58685.0,0.3608]
[1723673193395,0.12,58686.0,58685.0,0.445987]
[1723673194001,0.205186,58686.0,58685.0,0.3608]
[1723673194398,0.716386,58686.0,58685.0,0.3608]
[1723673194804,0.205186,58686.0,58685.0,0.3608]
[1723673195111,0.12,58686.0,58685.0,0.3608]
[1723673195696,0.12,58686.0,58685.0,0.445987]
[1723673196602,0.00025563,58691.0,58690.0,0.08518]
[1723673197120,0.00025563,58691.0,58690.0,0.60598]
[1723673197311,0.05020568,58702.0,58690.0,0.60598]
[1723673197499,0.16020568,58702.0,58701.0,0.445964]
[1723673199910,0.05020568,58702.0,58701.0,0.445964]
[1723673200203,0.3216,58707.0,58701.0,0.3608]
[1723673200409,0.506755,58707.0,58706.0,0.3608]
[1723673200613,0.696155,58707.0,58706.0,0.3608]
[1723673200808,1.096155,58707.0,58706.0,0.3608]
[1723673201008,1.266465,58707.0,58706.0,0.3608]
[1723673201209,0.17034,58697.0,58696.0,0.00025563]
[1723673201411,0.27034,58697.0,58696.0,0.00025563]
[1723673201710,1.18146,58697.0,58696.0,0.00025563]
[1723673204010,1.09629,58697.0,58696.0,0.00025563]
[1723673204515,1.18146,58697.0,58696.0,0.00025563]
[1723673204818,1.09629,58697.0,58696.0,0.00025563]
[1723673205414,1.18146,58697.0,58696.0,0.00025563]
[1723673205717,1.09629,58697.0,58696.0,0.00025563]
[1723673206311,1.18146,58697.0,58696.0,0.00025563]
[1723673207112,1.26663,58697.0,58696.0,0.00025563]
[1723673207313,1.26663,58697.0,58675.0,0.06776259]
[1723673207314,0.0852,58676.0,58675.0,0.06776259]
[1723673207615,0.1852,58676.0,58675.0,0.06776259]
[1723673207910,0.1704,58676.0,58675.0,0.06776259]
[1723673208116,0.99648,58676.0,58675.0,0.06776259]
[1723673208408,1.11648,58676.0,58675.0,0.06776259]
[1723673208817,0.71648,58676.0,58675.0,0.06776259]
[1723673209207,1.03128,58676.0,58672.0,0.00013806]
[1723673209410,0.085205,58673.0,58672.0,0.00013806]
[1723673209614,0.205205,58673.0,58672.0,0.00013806]
[1723673209812,1.116525,58673.0,58672.0,0.00013806]
[1723673210910,0.716525,58673.0,58672.0,0.00013806]
[1723673211109,0.205205,58673.0,58672.0,0.00013806]
[1723673212219,0.205205,58673.0,58672.0,0.08534406]
[1723673212918,0.205205,58673.0,58672.0,0.00013806]
[1723673213114,1.286935,58673.0,58672.0,0.00013806]
[1723673213319,0.255624,58671.0,58670.0,6.3e-07]
[1723673213624,0.736424,58671.0,58670.0,6.3e-07]
[1723673213918,1.562536,58671.0,58670.0,6.3e-07]
[1723673214317,1.64788206,58671.0,58670.0,6.3e-07]
[1723673214717,1.69802687,58671.0,58670.0,6.3e-07]
[1723673214917,1.64788206,58671.0,58670.0,6.3e-07]
[1723673215219,2.55852687,58671.0,58670.0,6.3e-07]
[1723673216620,2.47331887,58671.0,58670.0,6.3e-07]
[1723673217614,2.55852687,58671.0,58670.0,6.3e-07]
[1723673219423,2.50838206,58671.0,58670.0,6.3e-07]